bitfinex/quotes_ETHUSD_20240820
["timestamp","ask_amount","ask_price","bid_price","bid_amount"]
[1724144156929,2.4771,2665.0,2664.6,1.581]
[1724144158477,2.4771,2665.0,2664.6,4.31157849]
[1724144158680,2.4771,2665.0,2664.6,2.35461943]
[1724144158992,2.4771,2665.0,2664.6,4.31157849]
[1724144159289,2.4771,2665.0,2664.6,2.35461943]
[1724144159440,2.4771,2665.0,2664.6,4.31157849]
[1724144159857,2.4771,2665.0,2664.6,2.35461943]
[1724144160556,2.4771,2665.0,2664.6,4.31153722]
[1724144160883,2.4771,2665.0,2664.6,2.35461943]
[1724144161085,2.4771,2665.0,2664.6,4.311543]
[1724144161463,2.4771,2665.0,2664.6,2.35461943]
[1724144161754,2.4771,2665.0,2664.6,4.311543]
[1724144161955,2.4771,2665.0,2664.6,1.581]
[1724144162187,2.4771,2665.0,2664.3,30.4696054]
[1724144162188,3.75347,2664.2,2664.1,0.78500382]
[1724144162393,3.75326,2664.4,2663.7,2.54568585]
[1724144162394,2.4347,2664.1,2663.7,2.54568585]
[1724144162589,2.4347,2664.1,2663.5,1.95757037]
[1724144162805,2.4347,2664.1,2663.6,1.30512939]
[1724144163125,2.4347,2664.1,2663.5,3.80643449]
[1724144163307,2.4347,2664.1,2663.6,1.30509364]
[1724144163510,2.4347,2664.1,2663.6,2.88609364]
[1724144163825,2.4347,2664.1,2663.6,1.581]
[1724144163979,2.4347,2664.1,2663.8,1.581]
[1724144164614,2.4347,2664.1,2663.6,0.65491274]
[1724144164819,2.4347,2664.1,2663.4,2.74270302]
[1724144165114,2.4347,2664.1,2663.4,2.09006214]
[1724144165274,2.4347,2664.1,2663.5,1.30505832]
[1724144165477,2.4347,2664.1,2663.4,3.78500382]
[1724144165680,2.4347,2664.1,2663.5,2.14712343]
[1724144165923,2.4347,2664.1,2663.5,0.84207865]
[1724144170220,2.4347,2664.1,2662.9,7.31]
[1724144170491,7.55557,2664.2,2662.9,7.31]
[1724144170492,2.3442,2663.6,2662.9,7.31]
[1724144170627,6.0986,2663.6,2662.9,7.31]
[1724144170824,2.4027,2663.4,2662.9,7.31]
[1724144171038,3.0,2664.1,2662.8,19.75]
[1724144171039,2.4027,2663.2,2662.8,19.75]
[1724144174833,2.4027,2663.2,2662.6,7.37538755]
[1724144175752,2.4128,2663.1,2662.6,7.37538755]
[1724144176250,3.029577,2663.1,2662.6,7.37538755]
[1724144176450,2.4128,2663.0,2662.6,7.37538755]
[1724144177259,2.4128,2663.0,2662.6,7.31]
[1724144179978,2.3465,2663.7,2662.6,7.31]
[1724144180279,2.3465,2663.7,2662.7,2.706]
[1724144180434,2.3465,2663.7,2662.8,7.1777]
[1724144181435,2.3465,2663.7,2662.9,20.6757]
[1724144181677,2.3465,2663.7,2662.9,20.6257]
[1724144182203,2.3465,2663.7,2662.9,20.0757]
[1724144182485,2.3465,2663.7,2663.0,2.68777]
[1724144183584,2.3465,2663.7,2663.1,23.25]
[1724144184393,2.3465,2663.7,2663.1,3.0]
[1724144184890,2.3465,2663.7,2663.2,0.3757]
[1724144186485,2.3465,2663.7,2663.3,0.33757]
[1724144188397,2.4521,2664.0,2663.4,4.42708163]
[1724144188695,2.4521,2664.0,2663.5,3.0]
[1724144188892,2.4521,2664.0,2663.3,0.33757]
[1724144190845,2.4521,2664.0,2663.4,4.68028]
[1724144191091,2.4521,2664.0,2663.5,3.877251]
[1724144191692,2.4521,2664.0,2663.5,0.877251]
[1724144192396,2.4521,2664.0,2663.6,0.0750729]
[1724144192769,2.4521,2664.0,2663.6,19.7750729]
[1724144192970,2.4775,2664.7,2663.6,19.7750729]
[1724144193203,2.4775,2664.6,2663.7,2.06523239]
[1724144193376,2.4775,2664.6,2663.8,0.07506941]
[1724144194609,2.4775,2664.6,2663.7,2.06523239]
[1724144199935,2.4775,2664.6,2663.8,0.55]
[1724144200138,2.4775,2664.6,2663.7,2.06523239]
[1724144200369,2.4775,2664.6,2663.8,0.93752324]
[1724144202490,2.4775,2664.6,2663.9,0.55]
[1724144204670,2.4775,2664.6,2664.0,19.7]
[1724144210471,2.4775,2664.6,2663.8,23.63752324]
[1724144214188,2.4775,2664.6,2663.8,19.7]
[1724144214395,2.4832,2664.5,2663.8,19.7]
[1724144216475,2.4832,2664.5,2663.7,2.06523239]
[1724144216803,2.4832,2664.5,2663.7,5.06523239]
[1724144217985,2.4832,2664.5,2663.7,3.0]
[1724144218707,3.75358,2664.2,2663.3,7.31]
[1724144218912,2.4719,2664.1,2663.3,7.31]
[1724144222832,2.4719,2664.1,2663.3,7.6857]
[1724144223040,2.4719,2664.1,2663.4,2.98298693]
[1724144225433,2.4719,2664.1,2663.5,1.30500017]
[1724144229292,2.4719,2664.1,2663.6,1.30500017]
[1724144229803,2.4719,2664.1,2663.7,1.30500017]
[1724144231140,2.4911,2664.3,2663.8,1.30500017]
[1724144231387,2.4911,2664.3,2663.8,1.70967868]
[1724144231596,2.4911,2664.3,2663.8,0.40467851]
[1724144232095,2.4911,2664.3,2663.9,1.30490778]
[1724144232239,2.4911,2664.3,2663.9,21.00490778]
[1724144232443,2.4911,2664.3,2664.0,2.33670865]
[1724144233441,2.3742,2664.6,2664.1,19.7]
[1724144233659,2.3742,2664.6,2664.2,3.26187069]
[1724144234156,2.3742,2664.6,2664.3,1.30476643]
[1724144234365,2.3742,2664.6,2664.4,0.32618707]
[1724144235060,2.3742,2664.6,2664.2,1.95712123]
[1724144235263,2.3742,2664.6,2664.1,19.7]
[1724144235462,2.3742,2664.6,2664.2,1.30473622]
[1724144235660,2.3742,2664.6,2664.1,19.7]
[1724144237204,2.3742,2664.6,2664.2,1.30477722]
[1724144237438,2.3742,2664.6,2664.3,2.10047772]
[1724144237721,2.3742,2664.6,2664.2,19.7]
[1724144240717,2.3742,2664.6,2664.3,1.30468996]
[1724144241812,2.4079,2665.2,2664.3,1.30468996]
[1724144241978,2.4079,2665.2,2664.4,22.350469]
[1724144243793,2.4079,2665.2,2664.5,1.30455174]
[1724144244398,2.4079,2665.2,2664.4,22.726169]
[1724144246215,2.4079,2665.2,2664.5,19.7]
[1724144252273,2.4079,2665.2,2664.6,19.7]
[1724144252628,2.4079,2665.2,2664.6,21.283]
[1724144253886,2.4079,2665.2,2665.0,1.583]
[1724144255623,2.4079,2665.2,2664.8,1.583]
[1724144279608,2.4079,2665.2,2664.9,0.07504083]
[1724144280169,2.4079,2665.2,2664.8,1.583]
[1724144280513,2.4079,2665.2,2664.8,2.98338287]
[1724144281228,2.4079,2665.2,2664.6,8.893]
[1724144282353,2.4079,2665.2,2664.6,10.84989388]
[1724144282776,2.4079,2665.2,2664.8,1.583]
[1724144284078,2.4079,2665.2,2665.0,1.583]
[1724144293794,2.4079,2665.2,2664.9,1.95671144]
[1724144293975,2.4079,2665.2,2664.9,0.43239961]
[1724144294360,2.4079,2665.2,2664.8,3.53982427]
[1724144294888,2.4079,2665.2,2664.8,1.583]
[1724144295205,2.4079,2665.2,2664.8,3.53982427]
[1724144295603,2.4079,2665.2,2664.8,1.583]
[1724144295966,2.4079,2665.2,2664.7,1.19748974]
[1724144295967,2.3463,2665.1,2664.7,1.19748974]
[1724144296309,2.3463,2665.1,2663.9,1.19749136]
[1724144296310,2.3463,2664.6,2663.9,1.19749136]
[1724144296460,2.3463,2664.6,2664.0,1.30488855]
[1724144296667,2.3463,2664.6,2664.0,0.60427127]
[1724144296879,2.3344,2664.5,2664.0,0.60427127]
[1724144297098,2.3344,2664.5,2663.8,3.54047349]
[1724144297279,2.3344,2664.5,2663.8,1.583]
[1724144297477,2.3344,2664.4,2663.8,1.583]
[1724144299210,2.4783,2664.3,2663.8,1.583]
[1724144305107,2.4783,2664.3,2664.0,1.583]
[1724144307418,2.4783,2664.3,2664.2,1.583]
[1724144309982,2.4783,2664.3,2663.8,0.3757]
[1724144310291,2.4783,2664.3,2664.0,1.583]
[1724144311754,2.4783,2664.3,2664.0,21.283]
[1724144314356,2.4783,2664.3,2664.2,1.583]
[1724144318571,2.4783,2664.3,2664.0,21.283]
[1724144341428,2.4783,2664.3,2664.1,1.30490123]
[1724144341580,2.4783,2664.3,2664.1,2.37097559]
[1724144342380,2.4783,2664.3,2664.2,1.30486248]
[1724144344126,2.4783,2664.3,2664.2,3.26211778]
[1724144345128,2.4783,2664.3,2664.2,3.26207855]
[1724144345850,2.2638,2664.7,2664.2,3.26207855]
[1724144346057,2.2638,2664.7,2664.2,0.76259244]
[1724144349445,2.3303,2665.1,2664.6,1.583]
[1724144354779,2.3303,2665.1,2664.4,1.95700492]
[1724144354977,2.2612,2665.0,2664.4,1.583]
[1724144355754,6.01355,2665.0,2664.4,1.583]
[1724144355955,2.3076,2664.9,2664.3,1.95700492]
[1724144356168,2.3076,2664.9,2664.3,2.21181294]
[1724144356799,2.3076,2664.9,2664.3,4.16893868]
[1724144357101,2.3076,2664.9,2664.3,2.21181294]
[1724144357753,3.75269,2664.8,2664.3,0.62881294]
[1724144357954,2.2589,2664.7,2664.2,3.76259244]
[1724144358454,2.2589,2664.7,2664.2,0.76259244]
[1724144358661,2.2589,2664.7,2664.1,5.91124093]
[1724144359202,2.2589,2664.7,2664.1,4.32824093]
[1724144359358,2.2589,2664.7,2664.1,2.37097559]
[1724144359755,2.335,2664.7,2664.1,2.37097559]
[1724144361873,3.75283,2664.7,2664.0,1.583]
[1724144362074,2.3185,2664.7,2664.0,1.583]
[1724144363320,2.3754,2664.5,2664.0,1.583]
[1724144367523,2.3754,2664.5,2664.2,1.583]
[1724144370310,2.3648,2664.8,2664.2,1.583]
[1724144370493,2.3648,2664.8,2664.2,1.93702598]
[1724144374327,2.3648,2664.8,2664.2,3.89418473]
[1724144374986,2.3648,2664.8,2664.4,1.583]
[1724144378139,3.75221,2665.1,2664.4,4.0566]
[1724144378140,2.3954,2665.1,2664.4,4.0566]
[1724144378340,2.3954,2665.1,2664.6,1.583]
[1724144378540,2.3954,2665.1,2664.8,1.583]
[1724144379042,5.33461,2665.6,2665.0,1.583]
[1724144379043,2.3514,2665.5,2665.0,1.583]
[1724144379506,2.961701,2665.5,2664.8,1.583]
[1724144379728,6.713351,2665.5,2664.8,1.583]
[1724144380698,2.961701,2665.5,2664.8,1.583]
[1724144381212,2.3514,2665.5,2664.8,1.583]
[1724144388190,2.3482,2665.3,2664.5,3.0]
[1724144388614,2.3482,2665.3,2664.4,1.9587]
[1724144389658,6.10013,2665.3,2664.9,0.02016793]
[1724144389859,2.311,2665.2,2664.9,0.02016793]
[1724144390173,2.311,2665.1,2664.9,0.02016793]
[1724144391264,6.06328,2665.1,2664.9,0.02016793]
[1724144391576,2.2944,2665.0,2664.9,0.02016793]
[1724144401789,3.8774,2665.0,2664.9,0.02016793]
[1724144403572,2.2944,2665.0,2664.9,0.02016793]
[1724144406889,1.583,2665.6,2664.9,0.02016793]
[1724144406890,2.4437,2665.2,2664.9,0.02016793]
[1724144410708,2.474,2665.6,2665.0,1.583]
[1724144412574,2.474,2665.6,2664.9,0.02016793]
[1724144412760,2.474,2665.6,2665.0,1.583]
[1724144413163,2.474,2665.6,2665.2,1.583]
[1724144413497,2.474,2665.6,2665.4,1.583]
[1724144413694,2.4979,2666.1,2665.4,1.583]
[1724144415526,2.4979,2666.1,2665.1,2.2514]
[1724144415527,2.4979,2666.1,2665.6,1.583]
[1724144417345,2.4979,2666.1,2665.4,3.0]
[1724144417499,2.4979,2666.1,2665.5,0.3]
[1724144418199,2.4979,2666.1,2665.4,1.583]
[1724144421727,2.4979,2666.1,2665.6,1.583]
[1724144422136,2.4979,2666.1,2665.8,1.583]
[1724144425168,2.4979,2666.1,2665.3,2.3319737]
[1724144425169,2.4979,2666.1,2665.3,0.3759]
[1724144425464,2.4979,2666.1,2664.7,1.96372716]
[1724144425465,1.583,2665.6,2664.9,0.51785147]
[1724144425628,3.75053,2666.3,2664.9,0.02016793]
[1724144425629,2.398,2665.3,2664.9,0.02016793]
[1724144426164,1.583,2665.2,2664.9,0.02016793]
[1724144426332,2.3856,2665.1,2664.9,0.02016793]
[1724144426859,2.3856,2665.1,2664.9,1.60316793]
[1724144427060,2.3856,2665.1,2664.9,0.02016793]
[1724144437832,0.58812064,2666.2,2664.9,0.02016793]
[1724144438032,3.23116062,2666.8,2666.7,7.8758]
[1724144438033,0.96510178,2666.8,2666.7,7.8758]
[1724144438255,0.89313704,2666.8,2666.7,7.12585]
[1724144438463,0.89313704,2666.8,2666.7,5.46316753]
[1724144438644,0.89313704,2666.8,2666.7,4.15985552]
[1724144438858,0.89313704,2666.8,2666.7,3.91487289]
[1724144439076,0.89313704,2666.8,2666.7,3.0]
[1724144439381,0.89313704,2666.8,2666.7,4.583]
[1724144440386,0.89313704,2666.8,2666.7,1.583]
[1724144440527,0.89313704,2666.8,2665.6,3.16955552]
[1724144440726,0.89313704,2666.8,2665.7,3.794]
[1724144440930,0.89313704,2666.8,2665.9,0.3759]
[1724144441132,0.89313704,2666.8,2666.0,3.794]
[1724144441992,0.89313704,2666.8,2666.0,4.1699]
[1724144443166,0.89313704,2666.8,2666.0,0.3759]
[1724144444757,0.89313704,2666.8,2666.1,0.3759]
[1724144444957,0.89313704,2666.8,2666.2,0.788583]
[1724144445180,0.89313704,2666.8,2666.2,3.3759]
[1724144447599,2.4056,2667.1,2666.0,3.3759]
[1724144447812,7.54341,2667.1,2666.0,0.3759]
[1724144448100,2.4432,2666.9,2666.0,0.3759]
[1724144448495,2.4432,2666.9,2665.6,6.51289]
[1724144448646,2.4432,2666.9,2665.6,2.7615]
[1724144448847,2.4432,2666.9,2666.5,0.02016793]
[1724144449052,2.4432,2666.7,2666.5,0.02016793]
[1724144450320,2.4432,2666.7,2665.7,0.3759]
[1724144452380,2.4432,2666.7,2665.8,3.75121]
[1724144453035,2.4432,2666.7,2665.8,7.50242]
[1724144453406,2.4432,2666.7,2666.0,4.1267]
[1724144453686,2.3176,2667.9,2666.2,0.3759]
[1724144453976,2.3176,2667.9,2666.5,0.3759]
[1724144454132,2.3176,2667.9,2666.6,0.07499154]
[1724144454332,2.3176,2667.9,2666.5,3.0]
[1724144455244,2.3176,2667.9,2666.5,4.54436814]
[1724144455456,2.3176,2667.9,2666.6,0.3759]
[1724144455643,2.94546,2667.8,2666.7,0.56701785]
[1724144456183,2.94546,2667.8,2666.7,2.10321794]
[1724144456783,2.94546,2667.8,2666.7,5.10321794]
[1724144457082,2.3491,2667.7,2666.8,1.52693304]
[1724144457251,2.643646,2667.7,2666.8,1.52693304]
[1724144458942,4.043096,2667.7,2666.8,1.52693304]
[1724144459291,2.2934,2667.6,2666.8,1.52693304]
[1724144462273,2.2934,2667.6,2667.0,3.74952]
[1724144462465,2.2934,2667.6,2667.1,5.344952]
[1724144463387,2.2934,2667.6,2667.0,1.42466552]
[1724144463735,2.2934,2667.6,2667.3,0.02016793]
[1724144464986,6.04209,2667.6,2667.3,0.02016793]
[1724144465139,2.3814,2667.5,2667.3,0.02016793]
[1724144471155,6.13031,2667.5,2667.3,0.02016793]
[1724144471360,3.420313,2667.4,2667.3,0.02016793]
[1724144472811,2.4324,2667.4,2667.3,0.02016793]
[1724144478308,17.47328,2667.4,2667.3,0.02016793]
[1724144478507,14.27432,2667.4,2667.3,0.02016793]
[1724144478731,17.27432,2667.4,2667.3,0.02016793]
[1724144481134,3.75023,2666.6,2665.4,0.78395552]
[1724144481340,2.3186,2666.5,2665.5,0.78395552]
[1724144481546,3.75037,2666.4,2665.5,0.78395552]
[1724144482094,2.3186,2666.3,2665.5,0.78395552]
[1724144482337,2.3186,2666.2,2665.5,0.78395552]
[1724144483493,2.3186,2666.2,2665.4,2.6544]
[1724144483747,2.3186,2666.2,2665.5,3.26544]
[1724144485232,2.3186,2666.2,2665.5,3.64134]
[1724144485754,2.3186,2666.2,2665.5,0.64134]
[1724144485914,2.3186,2666.2,2665.2,3.0]
[1724144486102,2.3186,2666.2,2665.2,0.3759]
[1724144486339,2.3186,2666.2,2665.2,3.3759]
[1724144487277,2.3186,2666.2,2665.2,30.3859]
[1724144492794,2.3186,2666.2,2665.4,0.3759]
[1724144492992,2.3186,2666.2,2665.6,0.3759]
[1724144493291,2.3615,2667.0,2665.6,6.51919]
[1724144493497,2.3615,2666.9,2665.7,3.9259]
[1724144493703,2.3053,2666.8,2665.8,1.006919]
[1724144501186,2.388,2666.7,2665.7,3.3759]
[1724144506024,2.388,2666.7,2665.8,3.0]
[1724144506231,2.388,2666.7,2665.7,0.3759]
[1724144507233,6.13796,2666.7,2665.7,0.3759]
[1724144507437,2.3247,2666.6,2665.7,0.3759]
[1724144507752,0.846266,2666.5,2665.7,0.3759]
[1724144507962,2.3247,2666.4,2665.7,0.3759]
[1724144508262,2.3247,2666.4,2665.6,0.3759]
[1724144512651,2.3247,2666.4,2665.4,3.15294361]
[1724144512983,3.7503,2666.5,2665.3,19.7]
[1724144512984,2.3343,2666.3,2665.3,19.7]
[1724144513164,2.3343,2666.1,2665.3,19.7]
[1724144514087,2.3343,2666.1,2665.4,3.0]
[1724144517290,2.3343,2666.1,2664.9,13.97130192]
[1724144517291,3.794,2665.5,2664.7,0.58781765]
[1724144517452,3.75215,2665.2,2664.7,0.58781765]
[1724144517655,3.794,2665.5,2663.9,2.2818]
[1724144517656,2.2911,2665.1,2663.9,2.2818]
[1724144518069,2.2911,2665.1,2663.7,0.7840366]
[1724144518406,2.2911,2665.1,2664.0,0.58819831]
[1724144519380,2.3344,2664.9,2664.0,0.58819831]
[1724144520305,2.3344,2664.9,2664.0,7.19809831]
[1724144520468,2.3344,2664.9,2664.2,0.3759]
[1724144522803,2.3344,2664.9,2664.2,20.0759]
[1724144524909,2.3344,2664.9,2664.1,3.0]
[1724144524910,2.3344,2664.9,2664.3,23.6259]
[1724144525205,2.4636,2665.8,2664.4,2.36259]
[1724144525364,2.4636,2665.7,2664.4,32.37259]
[1724144525560,2.3287,2665.6,2664.4,32.37259]
[1724144528074,2.3287,2665.6,2664.5,2.426]
[1724144528265,2.3287,2665.6,2664.6,3.479859]
[1724144528764,2.3287,2665.6,2664.6,23.179859]
[1724144529508,2.3287,2665.6,2664.7,0.07504445]
[1724144529894,2.3287,2665.6,2664.6,26.973859]
[1724144530404,2.3287,2665.6,2664.6,23.179859]
[1724144530609,2.3287,2665.6,2664.7,2.5605859]
[1724144531901,2.3681,2665.5,2664.7,2.5605859]
[1724144532911,2.3681,2665.5,2664.6,23.179859]
[1724144534789,2.3681,2665.5,2664.4,32.37259]
[1724144534988,3.794,2665.8,2664.4,30.01]
[1724144534989,3.75198,2665.3,2664.4,30.01]
[1724144535205,2.3032,2665.3,2664.4,30.01]
[1724144540758,2.3032,2665.3,2664.4,10.31]
[1724144540928,2.3032,2665.3,2664.5,1.031]
[1724144541133,2.3032,2665.3,2664.5,4.031]
[1724144542163,2.3486,2665.1,2664.5,3.0]
[1724144542366,2.3486,2665.1,2663.9,7.31]
[1724144542510,3.75206,2665.2,2663.9,7.31]
[1724144542511,3.75243,2665.0,2663.9,7.31]
[1724144542713,2.4049,2664.9,2663.9,10.42799]
[1724144543426,2.3362,2664.7,2663.9,7.31]
[1724144546158,2.3362,2664.7,2664.0,4.24496447]
[1724144546361,2.3101,2665.3,2664.1,3.55]
[1724144546664,2.3101,2665.3,2664.2,7.31]
[1724144547157,2.3101,2665.3,2664.2,9.6315]
[1724144547361,2.3101,2665.3,2664.3,0.07505589]
[1724144547518,2.3101,2665.3,2664.3,6.86216112]
[1724144547721,2.3101,2665.3,2664.3,6.78710523]
[1724144547914,2.3101,2665.3,2664.3,6.41120523]
[1724144555549,2.3192,2665.2,2664.3,6.41120523]
[1724144559978,2.3192,2665.2,2664.4,1.30461049]
[1724144560150,2.3192,2665.2,2664.5,1.69700681]
[1724144561233,2.3192,2665.2,2664.3,6.41120523]
[1724144561538,2.3192,2665.2,2664.3,8.36820763]
[1724144562059,2.449,2665.1,2664.3,4.9570024]
[1724144562268,2.449,2665.1,2664.3,3.0]
[1724144562778,2.449,2665.1,2664.4,1.30472391]
[1724144563385,2.449,2665.1,2664.4,1.95709994]
[1724144563554,2.449,2665.1,2664.3,6.15439232]
[1724144563749,2.449,2665.1,2664.4,1.30469521]
[1724144563965,2.449,2665.1,2664.4,1.95709994]
[1724144564336,2.449,2665.1,2664.3,7.93260792]
[1724144564546,2.449,2665.1,2664.4,3.261689]
[1724144564790,2.449,2665.1,2664.5,1.30468968]
[1724144564958,2.449,2665.1,2664.5,2.42411988]
[1724144565310,2.449,2665.1,2664.5,1.1194302]
[1724144566881,2.449,2665.1,2664.5,3.07643457]
[1724144567081,2.449,2665.1,2664.5,1.1194302]
[1724144567282,2.449,2665.1,2664.5,3.07643457]
[1724144567477,2.449,2665.1,2664.6,0.30764346]
[1724144569516,2.449,2665.1,2664.4,1.95698618]
[1724144570087,2.449,2665.1,2664.5,1.30469713]
[1724144571901,2.449,2665.1,2664.4,1.95698618]
[1724144572831,2.449,2665.1,2664.5,1.30468423]
[1724144573038,2.449,2665.1,2664.4,1.95698618]
[1724144573242,2.449,2665.1,2664.4,4.05548751]
[1724144573621,2.449,2665.1,2664.4,4.05557433]
[1724144575040,2.449,2665.1,2664.5,1.30469894]
[1724144575438,2.449,2665.1,2664.4,4.05557433]
[1724144575741,2.449,2665.1,2664.5,3.26177511]
[1724144575910,2.449,2665.1,2664.6,0.6144313]
[1724144576908,2.449,2665.1,2664.5,1.95702724]
[1724144577838,2.449,2665.1,2664.6,1.3046681]
[1724144578050,2.449,2665.1,2664.7,4.45893078]
[1724144578214,2.449,2665.1,2664.8,3.261156]
[1724144578411,2.449,2665.1,2664.9,3.66567526]
[1724144578727,2.449,2665.1,2664.9,2.36121286]
[1724144579048,2.4474,2666.0,2665.0,3.26100322]
[1724144579338,2.4474,2666.0,2665.1,3.26098981]
[1724144579549,2.62114,2665.9,2664.9,1.18855586]
[1724144579848,2.3764,2665.9,2665.0,4.04496216]
[1724144579998,2.3764,2665.9,2665.1,3.26092556]
[1724144580192,2.3764,2665.9,2664.9,1.60168499]
[1724144580393,2.3764,2665.9,2665.0,3.57624662]
[1724144580635,2.3764,2665.9,2665.1,3.26084115]
[1724144580838,2.3764,2665.9,2665.2,1.30432199]
[1724144580998,2.3764,2665.9,2665.1,1.9564881]
[1724144581338,2.3764,2665.9,2665.1,1.95649241]
[1724144581661,2.3764,2665.9,2665.2,4.35040562]
[1724144581842,2.3764,2665.9,2665.3,3.26077972]
[1724144582134,2.3764,2665.9,2665.4,1.30431535]
[1724144582500,2.3764,2665.9,2665.2,7.2531584]
[1724144582691,2.3764,2665.9,2665.3,4.30412941]
[1724144582895,2.3764,2665.9,2665.4,1.15572878]
[1724144585851,2.4288,2666.7,2665.4,3.65202878]
[1724144586015,2.4288,2666.7,2665.5,3.55]
[1724144586908,2.4288,2666.7,2665.6,1.30395182]
[1724144587136,2.4288,2666.7,2665.7,1.78995818]
[1724144587332,2.4288,2666.7,2665.8,3.794]
[1724144587543,2.4288,2666.7,2665.8,6.2034]
[1724144588324,2.4288,2666.7,2665.9,0.55]
[1724144588956,2.4288,2666.7,2665.7,1.23995818]
[1724144589133,2.3528,2666.6,2665.7,4.23995818]
[1724144589334,2.3528,2666.6,2665.7,1.23995818]
[1724144591892,2.3528,2666.6,2665.8,0.55]
[1724144592076,2.3528,2666.6,2665.7,1.23995818]
[1724144594292,2.3528,2666.6,2665.7,20.93995818]
[1724144594604,2.3528,2666.6,2665.8,5.82499582]
[1724144598526,2.3528,2666.6,2665.8,9.61899582]
[1724144598728,2.3528,2666.6,2665.9,0.55]
[1724144600233,2.3528,2666.6,2666.0,19.7]
[1724144600379,2.3528,2666.6,2666.1,19.7]
[1724144600584,2.3528,2666.6,2666.2,1.97]
[1724144604356,2.3528,2666.6,2666.1,19.7]
[1724144606267,2.3528,2666.6,2665.8,25.52499582]
[1724144608363,2.3528,2666.6,2665.8,25.52416799]
[1724144608564,2.3528,2666.6,2666.1,1.582]
[1724144612468,2.3528,2666.6,2666.5,1.582]
[1724144612639,2.3528,2666.6,2666.3,1.582]
[1724144613127,2.3528,2666.6,2666.1,1.582]
[1724144613963,3.75001607,2667.7,2666.2,3.75064]
[1724144614179,3.75001607,2667.7,2666.8,1.582]
[1724144614180,2.3985,2667.0,2666.8,1.582]
[1724144622043,2.384,2667.6,2666.8,1.582]
[1724144623941,2.384,2667.6,2667.0,1.582]
[1724144625720,2.384,2667.6,2667.2,1.582]
[1724144631380,2.384,2667.6,2667.4,1.582]
[1724144633750,2.2505,2667.7,2667.4,1.582]
[1724144634859,2.2505,2667.7,2667.1,3.0]
[1724144635058,2.2505,2667.7,2667.1,5.613]
[1724144635466,2.2505,2667.7,2667.3,1.582]
[1724144636198,2.2505,2667.7,2667.5,1.582]
[1724144636555,0.5,2668.0,2667.5,1.582]
[1724144636899,0.5,2668.0,2667.8,1.582]
[1724144636900,2.8632,2668.0,2667.8,1.582]
[1724144642882,0.5,2668.0,2667.8,1.582]
[1724144646419,0.5,2668.0,2667.3,3.0]
[1724144646726,0.5,2668.0,2667.0,7.31]
[1724144646727,2.4906,2667.8,2667.0,7.31]
[1724144647598,2.4233,2667.6,2667.0,7.31]
[1724144649002,2.4233,2667.6,2667.0,8.892]
[1724144654100,2.4233,2667.6,2667.2,1.582]
[1724144657248,2.4233,2667.6,2667.0,8.892]
[1724144657454,2.66563,2667.6,2667.0,8.892]
[1724144659837,2.4233,2667.6,2667.2,1.582]
[1724144660224,2.4233,2667.6,2667.4,1.582]
[1724144663267,2.2943,2667.9,2667.4,1.582]
[1724144668226,2.2943,2667.9,2667.6,1.582]
[1724144670057,0.5,2668.0,2667.8,1.582]
[1724144674268,0.5,2668.0,2667.8,3.961]
[1724144674646,0.5,2668.0,2667.9,0.07495925]
[1724144675838,0.5,2668.0,2667.8,4.03595779]
[1724144676782,0.5,2668.0,2667.8,3.961]
[1724144676988,0.5,2668.0,2667.9,2.9161]
[1724144680501,0.5,2668.0,2667.9,2.3661]
[1724144680792,0.5,2668.0,2667.8,3.0]
[1724144681091,0.5,2668.0,2667.7,21.282]
[1724144682291,2.4349,2667.9,2667.7,19.7]
[1724144682495,2.4349,2667.9,2667.2,1.582]
[1724144683391,2.72839,2667.9,2667.2,1.582]
[1724144688772,5.33048,2667.8,2667.0,8.892]
[1724144689093,5.33048,2667.8,2667.0,7.31]
[1724144689094,1.582,2667.6,2667.0,7.31]
[1724144689261,0.533062,2667.5,2667.0,7.31]
[1724144689908,1.582,2667.6,2667.0,7.31]
[1724144690460,5.3307,2667.6,2666.8,1.582]
[1724144690686,5.3307,2667.6,2666.5,7.31]
[1724144690687,3.74884,2667.5,2666.6,4.582]
[1724144690893,1.582,2667.4,2666.6,4.582]
[1724144691414,1.582,2667.4,2666.6,1.582]
[1724144691556,3.7487,2667.6,2667.0,1.582]
[1724144691915,3.7487,2667.6,2666.8,1.582]
[1724144691916,2.4586,2667.5,2666.8,1.582]
[1724144692616,2.4586,2667.5,2666.5,7.31]
[1724144696609,2.4586,2667.5,2666.6,2.3435]
[1724144696772,2.4586,2667.5,2666.7,1.93229]
[1724144697815,2.4586,2667.5,2666.5,11.104]
[1724144697816,2.3283,2667.4,2666.5,7.31]
[1724144698110,2.3283,2667.4,2666.6,0.731]
[1724144704741,2.3283,2667.4,2666.7,0.55]
[1724144707241,2.3283,2667.4,2666.7,20.25]
[1724144710931,2.3283,2667.4,2666.7,19.7]
[1724144712295,2.3283,2667.4,2666.8,0.55]
[1724144712629,2.3283,2667.4,2667.1,1.58]
[1724144713815,2.3283,2667.4,2666.9,3.605]
[1724144719342,2.3283,2667.4,2666.9,1.58]
[1724144719895,2.3283,2667.4,2667.1,1.58]
[1724144722408,2.3283,2667.4,2666.9,1.58]
[1724144725058,2.3283,2667.4,2666.7,0.3754]
[1724144725059,2.3283,2667.4,2667.3,1.58]
[1724144727659,2.3767,2667.9,2667.3,1.58]